bitfinex-derivatives/quotes_BNBF0:USTF0_20230830
["timestamp","ask_amount","ask_price","bid_price","bid_amount"]
[1693409375301,0.07297081,223.09,222.66,0.07354285]
[1693409375302,0.07297081,223.09,222.67,0.82419378]
[1693409375502,0.07297081,223.1,222.68,0.82419378]
[1693409375703,0.07297081,223.1,222.67,0.82419378]
[1693409376009,0.07297081,223.1,222.68,0.82419378]
[1693409376211,0.07297081,223.1,222.67,0.82419378]
[1693409376405,0.07297081,223.1,222.68,0.82419378]
[1693409376610,0.07297081,223.1,222.67,0.89773663]
[1693409376804,0.07297081,223.1,222.68,0.82419378]
[1693409377110,0.07297081,223.11,222.68,0.82419378]
[1693409378706,0.07297081,223.11,222.69,0.82419378]
[1693409378903,0.07297081,223.11,222.7,0.82419378]
[1693409379106,0.07297081,223.11,222.71,0.82419378]
[1693409379309,0.07297081,223.11,222.72,0.82419378]
[1693409379510,0.07297081,223.12,222.73,0.82419378]
[1693409379710,0.07297081,223.12,222.67,0.82419378]
[1693409379907,0.07297081,223.12,222.68,0.82419378]
[1693409380105,0.07297081,223.12,222.67,0.82419378]
[1693409380309,0.07297081,223.12,222.68,0.82419378]
[1693409380510,0.07297081,223.12,222.69,0.82419378]
[1693409380706,0.07297081,223.12,222.7,0.82419378]
[1693409381012,0.07297081,223.12,222.71,0.82419378]
[1693409381312,0.07297081,223.12,222.72,0.82419378]
[1693409381509,0.07297081,223.12,222.73,0.82419378]
[1693409381709,0.07297081,223.12,222.74,0.82419378]
[1693409381909,0.07297081,223.12,222.67,0.82419378]
[1693409382109,0.07297081,223.12,222.68,0.82419378]
[1693409382311,0.07297081,223.12,222.67,0.82419378]
[1693409382613,0.07297081,223.12,222.68,0.82419378]
[1693409382812,0.07297081,223.12,222.69,0.82419378]
[1693409383012,0.07297081,223.12,222.67,0.82419378]
[1693409383212,0.07297081,223.12,222.68,0.82419378]
[1693409383413,0.07297081,223.12,222.67,0.82419378]
[1693409383615,0.07297081,223.13,222.68,0.82419378]
[1693409383915,0.07297081,223.13,222.69,0.82419378]
[1693409384216,0.07297081,223.13,222.7,0.82419378]
[1693409384413,0.07297081,223.13,222.71,0.82419378]
[1693409384619,0.07297081,223.13,222.72,0.82419378]
[1693409384814,0.07297081,223.13,222.73,0.82419378]
[1693409385014,0.07297081,223.13,222.74,0.82419378]
[1693409385215,0.07297081,223.13,222.75,0.82419378]
[1693409385412,0.07297081,223.13,222.76,0.82419378]
[1693409385608,0.07297081,223.13,222.77,0.82419378]
[1693409385811,0.07297081,223.13,222.78,0.82419378]
[1693409386015,0.07297081,223.13,222.79,0.82419378]
[1693409386214,0.07297081,223.13,222.8,0.82419378]
[1693409386410,0.07297081,223.13,222.66,0.07354285]
[1693409386616,0.07297081,223.13,222.67,0.82416754]
[1693409387515,0.07297081,223.12,222.67,0.82416754]
[1693409388310,0.14594162,223.14,222.68,0.82416754]
[1693409388311,0.07297081,223.11,222.68,0.82416754]
[1693409388515,0.07297081,223.11,222.69,0.82416754]
[1693409388811,0.07297081,223.11,222.66,0.82416754]
[1693409389016,0.07297081,223.11,222.67,0.82416754]
[1693409389216,0.07297081,223.11,222.68,0.82416754]
[1693409389410,0.07297081,223.11,222.69,0.82416754]
[1693409389612,0.07297081,223.11,222.7,0.82416754]
[1693409389816,0.07297081,223.11,222.71,0.82416754]
[1693409390117,0.07297081,223.11,222.66,0.07354285]
[1693409390118,0.07297081,223.11,222.72,0.82416754]
[1693409390314,0.07297081,223.11,222.67,0.82416754]
[1693409390515,0.07297081,223.11,222.66,0.07354285]
[1693409390516,0.07297081,223.1,222.68,0.82416754]
[1693409390711,0.07297081,223.1,222.67,0.82416754]
[1693409390912,0.07297081,223.1,222.68,0.82416754]
[1693409391110,0.07297081,223.1,222.69,0.82416754]
[1693409391314,0.07297081,223.1,222.7,0.82416754]
[1693409391610,0.07297081,223.11,222.71,0.82416754]
[1693409391814,0.07297081,223.1,222.69,0.82416754]
[1693409392014,0.07297081,223.1,222.68,0.07354285]
[1693409392015,0.07297081,223.1,222.7,0.82416754]
[1693409392213,0.07297081,223.1,222.71,0.82416754]
[1693409392410,0.07297081,223.1,222.72,0.82416754]
[1693409392608,0.07297081,223.1,222.73,0.82416754]
[1693409392815,0.07297081,223.1,222.74,0.82416754]
[1693409393017,0.07297081,223.1,222.69,0.82416754]
[1693409393217,0.07297081,223.1,222.7,0.82416754]
[1693409393415,0.07297081,223.1,222.69,0.82416754]
[1693409393619,0.07297081,223.09,222.7,0.82416754]
[1693409394613,0.07297081,223.09,222.7,0.89771039]
[1693409394817,0.07297081,223.09,222.71,0.82416754]
[1693409395622,0.07297081,223.08,222.71,0.89771039]
[1693409395919,0.07297081,223.08,222.72,0.82416754]
[1693409396220,0.07297081,223.07,222.72,0.82416754]
[1693409396719,0.07297081,223.06,222.73,0.82416754]
[1693409397614,0.07297081,223.04,222.73,0.89771039]
[1693409397818,0.07297081,223.04,222.74,0.82416754]
[1693409398721,0.07297081,223.01,222.76,0.07354285]
[1693409398920,0.07297081,223.01,222.77,0.82416754]
[1693409399722,0.07297081,223.0,222.77,0.89771039]
[1693409399922,0.07297081,223.0,222.78,0.82416754]
[1693409402423,0.07297081,223.0,222.78,0.89771039]
[1693409402721,0.07297081,223.0,222.79,0.82416754]
[1693409403223,0.07297081,223.01,222.79,0.82416754]
[1693409403423,0.07297081,223.01,222.79,0.89771039]
[1693409403720,0.07297081,223.01,222.8,0.82416754]
[1693409404320,0.07297081,223.01,222.79,0.89771039]
[1693409404518,0.07297081,223.01,222.81,0.82416754]
[1693409404721,0.07297081,223.01,222.78,0.07354285]
[1693409404921,0.07297081,223.01,222.79,0.8241221]
[1693409405121,0.07297081,223.02,222.79,0.89766495]
[1693409405322,0.07297081,223.06,222.83,0.07354285]
[1693409405524,0.07297081,223.07,222.84,0.89766495]
[1693409405719,0.07297081,223.07,222.85,0.8241221]
[1693409407124,0.07297081,223.09,222.85,0.8241221]
[1693409407319,0.07297081,223.09,222.86,0.8241221]
[1693409407524,0.07297081,223.09,222.83,0.8241221]
[1693409407723,0.07297081,223.09,222.84,0.8241221]
[1693409407925,0.07297081,223.09,222.85,0.8241221]
[1693409408118,0.07297081,223.09,222.83,0.8241221]
[1693409408323,0.07297081,223.09,222.58,0.98057133]
[1693409408324,0.07297081,223.1,222.84,0.8241221]
[1693409408625,0.07297081,223.1,222.85,0.8241221]
[1693409408820,0.07297081,223.1,222.82,0.8241221]
[1693409409022,0.07297081,223.1,222.83,0.8241221]
[1693409409223,0.07297081,223.11,222.84,0.8241221]
[1693409409424,0.07297081,223.11,222.81,0.8241221]
[1693409410224,0.07297081,223.11,222.8,0.8241221]
[1693409410429,0.07297081,223.11,222.81,0.8241221]
[1693409410731,0.07297081,223.11,222.82,0.8241221]
[1693409411030,0.07297081,223.12,222.83,0.8241221]
[1693409411226,0.07297081,223.12,222.84,0.8241221]
[1693409411434,0.07297081,223.12,222.85,0.8241221]
[1693409411731,0.07297081,223.12,222.86,0.8241221]
[1693409411931,0.07297081,223.12,222.8,0.8241221]
[1693409412227,0.07297081,223.12,222.72,0.1470857]
[1693409412228,0.07297081,223.12,222.81,0.82362194]
[1693409412430,0.07297081,223.12,222.79,0.82362194]
[1693409412633,0.07297081,223.12,222.8,0.82362194]
[1693409412931,0.07297081,223.12,222.81,0.82362194]
[1693409413131,0.07297081,223.12,222.82,0.82362194]
[1693409413332,0.07297081,223.12,222.79,0.82362194]
[1693409413531,0.07297081,223.12,222.8,0.82362194]
[1693409413731,0.07297081,223.12,222.81,0.82362194]
[1693409413928,0.07297081,223.12,222.82,0.82362194]
[1693409414126,0.07297081,223.12,222.79,0.82362194]
[1693409414330,0.07297081,223.12,222.8,0.82362194]
[1693409414531,0.07297081,223.12,222.81,0.82362194]
[1693409414730,0.07297081,223.12,222.79,0.82362194]
[1693409414933,0.07297081,223.12,222.8,0.82362194]
[1693409415232,0.07297081,223.13,222.81,0.82362194]
[1693409415428,0.07297081,223.13,222.79,0.82362194]
[1693409415629,0.07297081,223.13,222.8,0.82362194]
[1693409415932,0.07297081,223.13,222.81,0.82362194]
[1693409416127,0.07297081,223.13,222.79,0.82362194]
[1693409416329,0.07297081,223.13,222.8,0.82362194]
[1693409416531,0.07297081,223.13,222.81,0.82362194]
[1693409416731,0.07297081,223.13,222.79,0.82362194]
[1693409416926,0.07297081,223.13,222.8,0.82362194]
[1693409417126,0.07297081,223.13,222.81,0.82362194]
[1693409417330,0.07297081,223.13,222.78,0.82362194]
[1693409417633,0.07297081,223.13,222.79,0.82362194]
[1693409417939,0.07297081,223.13,222.8,0.82362194]
[1693409418125,0.07297081,223.13,222.77,0.07354285]
[1693409418126,0.07297081,223.13,222.81,0.82362194]
[1693409418331,0.07297081,223.13,222.82,0.82362194]
[1693409418635,0.07297081,223.13,222.83,0.82362194]
[1693409418830,0.07297081,223.13,222.78,0.82362194]
[1693409420331,2.43236033,223.27,222.78,0.89716479]
[1693409420332,0.07297081,223.14,222.78,0.89716479]
[1693409420531,0.07297081,223.14,222.79,0.82362194]
[1693409420730,0.07297081,223.13,222.8,0.82362194]
[1693409420925,0.07297081,223.13,222.78,0.82362194]
[1693409421130,0.07297081,223.13,222.79,0.82362194]
[1693409421327,0.07297081,223.13,222.78,0.82362194]
[1693409421533,0.07297081,223.13,222.79,0.82362194]
[1693409421830,0.07297081,223.13,222.8,0.82362194]
[1693409422033,0.07297081,223.13,222.77,0.82362194]
[1693409422238,0.07297081,223.13,222.78,0.82362194]
[1693409422430,0.07297081,223.13,222.77,0.89716479]
[1693409422635,0.07297081,223.13,222.78,0.82362194]
[1693409426930,0.07297081,223.12,222.78,0.82362194]
[1693409427737,0.07297081,223.13,222.78,0.82362194]
[1693409428236,0.07297081,223.12,222.78,0.82362194]
[1693409429530,0.07297081,223.12,222.78,0.89716479]
[1693409429730,0.07297081,223.12,222.79,0.82362194]
[1693409431938,0.07297081,223.12,222.79,0.89716479]
[1693409432138,0.07297081,223.12,222.8,0.82362194]
[1693409432640,0.07297081,223.11,222.8,0.82362194]
[1693409433636,0.07297081,223.11,222.8,0.89716479]
[1693409433839,0.07297081,223.11,222.81,0.82362194]
[1693409434637,0.07297081,223.1,222.81,0.89716479]
[1693409434837,0.07297081,223.09,222.82,0.82362194]
[1693409435036,0.07297081,223.09,222.81,0.89716479]
[1693409435239,0.07297081,223.09,222.82,0.82362194]
[1693409436441,0.07297081,223.1,222.82,0.82362194]
[1693409436939,0.07297081,223.09,222.82,0.82362194]
[1693409437733,0.07297081,223.09,222.82,0.89716479]
[1693409437934,0.07297081,223.09,222.83,0.82362194]
[1693409439040,0.97294413,223.16,222.83,0.89716479]
[1693409439041,0.07297081,223.08,222.83,0.89716479]
[1693409439339,0.07297081,223.08,222.84,0.82362194]
[1693409440243,0.07297081,223.06,222.85,0.07354285]
[1693409440444,0.07297081,223.06,222.86,0.82362194]
[1693409446851,0.07297081,223.07,222.86,0.82362194]
[1693409462064,0.07297081,223.06,222.86,0.82362194]
[1693409465365,0.07297081,223.07,222.86,0.82362194]
[1693409465867,0.07297081,223.06,222.86,0.82362194]
[1693409470572,0.07297081,223.05,222.84,0.07354285]
[1693409470767,0.07297081,223.05,222.85,0.82398143]
[1693409471172,0.07297081,223.05,222.84,0.82398143]
[1693409471371,0.07297081,223.05,222.85,0.82397504]
[1693409471571,0.07297081,223.05,222.83,0.07354285]
[1693409471772,0.07297081,223.05,222.84,0.82397342]
[1693409472369,0.07297081,223.05,222.83,0.07354285]
[1693409472576,0.07297081,223.0,222.78,0.07354285]
[1693409472769,0.07297081,223.0,222.79,0.82420015]
[1693409473175,0.07297081,223.02,222.79,0.82420015]
[1693409473370,0.07297081,223.02,222.76,0.82420015]
[1693409473571,0.07297081,223.02,222.77,0.82422481]
[1693409473775,0.07297081,223.02,222.76,0.82422481]
[1693409473975,0.07297081,223.02,222.77,0.82422481]
[1693409474173,0.07297081,223.02,222.76,0.82422481]
[1693409474373,0.07297081,223.02,222.77,0.82422481]
[1693409474573,0.07297081,223.02,222.76,0.82422481]
[1693409474776,0.07297081,223.02,222.77,0.82422481]
[1693409474975,0.07297081,223.04,222.76,0.82422481]
[1693409475175,0.07297081,223.04,222.77,0.82422481]
[1693409475375,0.07297081,223.04,222.75,0.82422481]
[1693409475575,0.07297081,223.04,222.76,0.82422481]
[1693409475768,0.07297081,223.04,222.75,0.82422481]
[1693409475970,0.07297081,223.04,222.76,0.82422481]
[1693409476171,0.07297081,223.05,222.75,0.82422481]
[1693409476370,0.07297081,223.05,222.76,0.82422481]
[1693409476674,0.07297081,223.05,222.77,0.82422481]
[1693409476870,0.07297081,223.05,222.74,0.89776766]
[1693409477077,0.07297081,223.05,222.75,0.82422481]
[1693409477976,0.07297081,223.06,222.75,0.82422481]
[1693409478171,0.07297081,223.06,222.74,0.82422481]
[1693409479473,0.07297081,223.06,222.75,0.82422481]
[1693409479778,0.07297081,223.06,222.76,0.82422481]
[1693409480077,0.07297081,223.07,222.77,0.82422481]
[1693409480275,0.07297081,223.07,222.73,0.82422481]
[1693409480479,0.07297081,223.07,222.74,0.82422481]
[1693409480674,0.07297081,223.07,222.73,0.82422481]
[1693409480979,0.07297081,223.07,222.74,0.82422481]
[1693409481174,0.07297081,223.07,222.73,0.82422481]
[1693409481374,0.07297081,223.07,222.74,0.82422481]
[1693409481574,0.07297081,223.07,222.75,0.82422481]
[1693409481877,0.07297081,223.07,222.76,0.82422481]
[1693409482078,0.07297081,223.07,222.77,0.82422481]
[1693409482278,0.07297081,223.07,222.78,0.82422481]
[1693409482479,0.07297081,223.07,222.79,0.82422481]
[1693409482678,0.07297081,223.07,222.8,0.82422481]
[1693409482882,0.07297081,223.07,222.71,0.07354285]
[1693409483077,0.07297081,223.07,222.72,0.8241813]
[1693409485479,0.07297081,223.07,222.71,0.8241813]
[1693409485779,0.07297081,223.07,222.72,0.8241813]
[1693409486082,0.07297081,223.07,222.73,0.8241813]
[1693409486283,0.07297081,223.07,222.74,0.8241813]
[1693409486481,0.07297081,223.07,222.75,0.8241813]
[1693409486784,0.07297081,223.07,222.7,0.07354285]
[1693409486785,0.07297081,223.07,222.76,0.8241813]
[1693409486986,0.07297081,223.07,222.77,0.8241813]
[1693409487287,0.07297081,223.07,222.78,0.8241813]
[1693409487481,0.07297081,223.07,222.79,0.8241813]
[1693409487686,0.07297081,223.07,222.71,0.8241813]
[1693409487882,0.07297081,223.07,222.72,0.82418822]
[1693409488083,0.07297081,223.07,222.71,0.82418822]
[1693409488288,0.07297081,223.07,222.72,0.82418822]
[1693409488484,0.07297081,223.07,222.71,0.82418822]
[1693409488684,0.07297081,223.07,222.72,0.82418822]
[1693409488889,0.07297081,223.07,222.73,0.82418822]
[1693409489089,0.07297081,223.07,222.74,0.82418822]
[1693409489389,0.07297081,223.07,222.75,0.82418822]
[1693409489588,0.07297081,223.07,222.71,0.82418822]
[1693409489784,0.07297081,223.07,222.72,0.82418822]
[1693409489990,0.07297081,223.07,222.71,0.82418822]
[1693409490185,0.07297081,223.07,222.72,0.82418822]
[1693409490387,0.07297081,223.07,222.71,0.82418822]
[1693409490591,0.07297081,223.07,222.72,0.82418822]
[1693409490890,0.07297081,223.07,222.73,0.82418822]
[1693409491091,0.07297081,223.07,222.74,0.82418822]
[1693409491389,0.07297081,223.07,222.7,0.07354285]
[1693409491390,0.07297081,223.07,222.75,0.82418822]
[1693409491590,0.07297081,223.07,222.71,0.82418822]
[1693409491786,0.07297081,223.07,222.72,0.82418822]
[1693409491992,0.07297081,223.07,222.71,0.82418822]
[1693409492292,0.07297081,223.07,222.72,0.82418822]
[1693409492594,0.07297081,223.07,222.73,0.82418822]
[1693409492892,0.07297081,223.07,222.74,0.82418822]
[1693409493093,0.07297081,223.07,222.75,0.82418822]
[1693409493293,0.07297081,223.07,222.71,0.82418822]
[1693409493489,0.07297081,223.07,222.72,0.82418822]
[1693409493687,0.07297081,223.07,222.71,0.82418822]
[1693409493887,0.07297081,223.07,222.72,0.82418822]
[1693409494087,0.07297081,223.07,222.73,0.82418822]
[1693409494290,0.07297081,223.07,222.71,0.82418822]
[1693409494491,0.07297081,223.07,222.72,0.82418822]
[1693409494792,0.07297081,223.07,222.73,0.82418822]
[1693409494993,0.07297081,223.07,222.74,0.82418822]
[1693409495187,0.07297081,223.07,222.72,0.82418822]
[1693409495390,0.07297081,223.07,222.73,0.82418822]
[1693409495591,0.07297081,223.07,222.72,0.82418822]
[1693409495794,0.07297081,223.07,222.73,0.82418822]
[1693409495994,0.07297081,223.07,222.74,0.82418822]
[1693409496194,0.07297081,223.07,222.71,0.07354285]
[1693409496195,0.07297081,223.07,222.75,0.82418822]
[1693409496494,0.07297081,223.07,222.76,0.82418822]
[1693409496795,0.07297081,223.07,222.77,0.82418822]
[1693409496988,0.07297081,223.07,222.72,0.82418822]
[1693409497189,0.07297081,223.07,222.73,0.82418822]
[1693409497395,0.07297081,223.07,222.74,0.82418822]
[1693409497695,0.07297081,223.07,222.75,0.82418822]
[1693409497999,0.07297081,223.08,222.76,0.82418822]
[1693409498194,0.07297081,223.08,222.74,0.82418822]
[1693409498394,0.07297081,223.08,222.75,0.82418822]
[1693409498597,0.07297081,223.08,222.74,0.82418822]
[1693409498801,0.07297081,223.08,222.75,0.82418822]
[1693409499101,0.07297081,223.07,222.76,0.82418822]
[1693409499297,0.07297081,223.07,222.77,0.82418822]
[1693409499497,0.07297081,223.07,222.73,0.07354285]
[1693409499498,0.07297081,223.07,222.78,0.82418822]
[1693409499697,0.07297081,223.07,222.79,0.82418822]
[1693409499902,0.07297081,223.07,222.8,0.82418822]
[1693409500098,0.07297081,223.07,222.74,0.82418822]
[1693409500303,0.07297081,223.07,222.75,0.82418822]
[1693409500504,0.07297081,223.07,222.74,0.82418822]
[1693409500806,0.07297081,223.06,222.75,0.82418822]
[1693409500997,0.07297081,223.06,222.74,0.82418822]
[1693409501202,0.07297081,223.06,222.75,0.82418822]
[1693409502499,0.07297081,223.05,222.75,0.82418822]
[1693409502805,0.07297081,223.06,222.75,0.82418822]
[1693409503006,0.07297081,223.05,222.75,0.82418822]
[1693409504007,0.07297081,223.03,222.75,0.82418822]
[1693409505007,0.07297081,223.02,222.75,0.89773107]
[1693409505205,0.07297081,223.02,222.76,0.82418822]
[1693409506109,0.07297081,223.01,222.76,0.89773107]
[1693409506307,0.07297081,223.01,222.77,0.82418822]
[1693409507110,0.07297081,222.99,222.77,0.89773107]
[1693409507311,0.07297081,222.99,222.78,0.82418822]
[1693409507810,0.07297081,223.0,222.78,0.82418822]
[1693409508513,0.07297081,223.0,222.78,0.89773107]
[1693409508706,0.07297081,223.0,222.79,0.82418822]
[1693409511314,0.07297081,223.0,222.78,0.89773107]
[1693409511515,0.07297081,223.0,222.79,0.82418053]
[1693409511814,0.07297081,223.0,222.78,0.07354285]
[1693409512015,0.07297081,223.0,222.79,0.82417903]
[1693409512515,0.07297081,223.0,222.78,0.07354285]
[1693409512711,0.07297081,223.0,222.79,0.82417907]
[1693409513117,0.07297081,223.0,222.77,0.07354285]
[1693409513317,0.07297081,223.0,222.78,0.82418686]
[1693409513818,0.07297081,223.0,222.78,0.89772971]
[1693409514011,0.07297081,223.0,222.79,0.82418686]
[1693409521524,0.07297081,223.0,222.78,0.82418686]
[1693409521723,0.07297081,223.0,222.79,0.82417932]
[1693409522019,0.07297081,223.0,222.8,0.82417932]
[1693409522223,0.07297081,223.0,222.79,0.82417932]
[1693409522416,0.07297081,223.0,222.8,0.82417077]
[1693409522615,0.07297081,223.0,222.78,0.07354285]
[1693409522817,0.07297081,223.0,222.79,0.82417088]
[1693409533733,0.07297081,223.04,222.83,0.07354285]
[1693409534033,0.07297081,223.06,222.84,0.89771373]
[1693409534334,0.07297081,223.06,222.85,0.82417088]
[1693409534934,0.07297081,223.08,222.85,0.82417088]
[1693409535233,0.07297081,223.08,222.86,0.82417088]
[1693409535434,0.07297081,223.08,222.83,0.82417088]
[1693409535630,0.07297081,223.08,222.84,0.82390406]
[1693409535832,0.07297081,223.09,222.83,0.82390406]
[1693409536133,0.07297081,223.09,222.84,0.82390406]
[1693409536328,0.07297081,223.09,222.82,0.82390406]
[1693409536533,0.07297081,223.1,222.83,0.82390406]
[1693409536727,0.07297081,223.1,222.82,0.82390406]
[1693409537133,0.07297081,223.1,222.83,0.82390406]
[1693409537333,0.07297081,223.1,222.84,0.82390406]
[1693409537534,0.07297081,223.1,222.85,0.82390406]
[1693409537735,0.07297081,223.1,222.86,0.82390406]
[1693409538033,0.07297081,223.11,222.8,0.07354285]
[1693409538235,0.07297081,223.11,222.81,0.82391333]
[1693409539030,0.07297081,223.12,222.81,0.82391333]
[1693409539235,0.07297081,223.12,222.82,0.82391333]
[1693409539427,0.07297081,223.11,222.8,0.82391333]
[1693409539628,0.07297081,223.11,222.81,0.82391333]
[1693409539832,0.07297081,223.11,222.8,0.82391333]
[1693409540034,0.07297081,223.12,222.81,0.82391333]
[1693409540233,0.07297081,223.12,222.79,0.82391333]
[1693409540430,0.07297081,223.12,222.8,0.82391333]
[1693409540629,0.07297081,223.12,222.81,0.82391333]
[1693409540833,0.07297081,223.12,222.82,0.82391333]
[1693409541035,0.07297081,223.12,222.8,0.82391333]
[1693409541234,0.07297081,223.12,222.81,0.82391333]
[1693409541435,0.07297081,223.12,222.79,0.82391333]
[1693409541636,0.07297081,223.12,222.8,0.82391333]
[1693409541833,0.07297081,223.13,222.79,0.82391333]
[1693409542136,0.07297081,223.13,222.8,0.82391333]
[1693409542435,0.07297081,223.13,222.81,0.82391333]
[1693409542631,0.07297081,223.13,222.79,0.82391333]
[1693409542829,0.07297081,223.13,222.8,0.82391333]
[1693409543034,0.07297081,223.13,222.81,0.82391333]
[1693409543228,0.07297081,223.13,222.82,0.82391333]
[1693409543432,0.07297081,223.13,222.83,0.82391333]
[1693409543633,0.07297081,223.13,222.84,0.82391333]
[1693409543930,0.07297081,223.13,222.85,0.82391333]
[1693409544136,0.07297081,223.13,222.79,0.82391333]
[1693409544335,0.07297081,223.13,222.8,0.82391333]
[1693409544536,0.07297081,223.13,222.79,0.82391333]
[1693409544737,0.07297081,223.13,222.8,0.82391333]
[1693409544936,0.07297081,223.14,222.79,0.82391333]
[1693409545237,0.07297081,223.14,222.8,0.82391333]
[1693409545434,0.07297081,223.14,222.81,0.82391333]
[1693409545631,0.07297081,223.14,222.82,0.82391333]
[1693409545833,0.07297081,223.14,222.78,0.07354285]
[1693409545834,0.07297081,223.14,222.83,0.82391333]
[1693409546031,0.07297081,223.14,222.84,0.82391333]
[1693409546338,0.07297081,223.14,222.85,0.82391333]
[1693409546535,0.07297081,223.14,222.79,0.82391333]
[1693409546731,0.07297081,223.14,222.8,0.82391333]
[1693409546931,0.07297081,223.14,222.79,0.82391333]
[1693409547135,0.07297081,223.14,222.8,0.82391333]
[1693409547332,0.07297081,223.14,222.78,0.07354285]
[1693409547333,0.07297081,223.14,222.79,0.82391333]
[1693409547533,0.07297081,223.14,222.8,0.82391333]
[1693409547738,0.07297081,223.15,222.81,0.82391333]
[1693409547936,0.07297081,223.15,222.82,0.82391333]
[1693409548137,0.07297081,223.15,222.83,0.82391333]
[1693409548440,0.07297081,223.15,222.84,0.82391333]
[1693409548632,0.07297081,223.15,222.85,0.82391333]
[1693409548834,0.48647206,223.2,222.86,0.82391333]
[1693409549036,0.48647206,223.2,222.72,0.1470857]
[1693409549237,0.14644627,223.17,222.88,0.82391333]
[1693409549439,0.14644627,223.17,222.72,0.14646795]
[1693409549440,0.07322313,223.15,222.72,0.14646795]
[1693409549640,0.07322313,223.15,222.79,0.07323397]
[1693409549940,0.07322313,223.15,222.8,0.82386676]
[1693409554941,0.07322313,223.16,222.8,0.82386676]
[1693409555137,0.07322313,223.16,222.79,0.82386676]
[1693409555341,0.07322313,223.16,222.8,0.82386676]
[1693409555742,0.07322313,223.16,222.79,0.82386676]
[1693409556041,0.07322313,223.16,222.8,0.82386676]
[1693409556242,0.07322313,223.16,222.79,0.82386676]
[1693409557439,0.07322313,223.15,222.79,0.89710073]
[1693409557637,0.07322313,223.15,222.8,0.82386676]
[1693409557837,0.07322313,223.15,222.79,0.82386676]
[1693409558037,0.07322313,223.14,222.8,0.82386676]
[1693409558245,0.07322313,223.15,222.8,0.82386676]
[1693409558446,0.07322313,223.15,222.81,0.82386676]
[1693409558647,0.07322313,223.15,222.79,0.82386676]
[1693409558846,0.07322313,223.14,222.8,0.82386676]
[1693409559046,0.07322313,223.14,222.79,0.82386676]
[1693409559247,0.07322313,223.14,222.8,0.82386676]
[1693409559450,0.07322313,223.14,222.79,0.82386676]
[1693409559644,0.07322313,223.14,222.8,0.82386676]
[1693409559843,0.07322313,223.14,222.79,0.82386676]
[1693409560047,0.07322313,223.14,222.8,0.82386676]
[1693409560244,0.07322313,223.14,222.79,0.89710073]
[1693409560442,0.07322313,223.14,222.8,0.82386676]
[1693409561844,0.07322313,223.13,222.8,0.82386676]
[1693409562246,0.07322313,223.13,222.8,0.89710073]
[1693409562450,0.07322313,223.13,222.81,0.82386676]
[1693409564053,0.07322313,223.12,222.81,0.82386676]
[1693409564954,0.07322313,223.12,222.81,0.89710073]
[1693409565154,0.07322313,223.11,222.82,0.82386676]
[1693409566054,0.07322313,223.11,222.82,0.89710073]
[1693409566256,0.07322313,223.11,222.83,0.82386676]
[1693409566955,0.07322313,223.1,222.83,0.89710073]
[1693409567156,0.07322313,223.1,222.84,0.82386676]
[1693409568253,0.07322313,223.08,222.85,0.07323397]
[1693409568452,0.07322313,223.08,222.86,0.82386676]
[1693409568855,0.07322313,223.09,222.86,0.82386676]
[1693409571859,0.07322313,223.09,222.86,0.89710073]
[1693409572060,0.07322313,223.09,222.87,0.82386676]
[1693409574161,0.14644627,223.11,222.85,0.07323397]
[1693409574162,0.07322313,223.08,222.85,0.07323397]
[1693409574456,0.07322313,223.08,222.86,0.82332656]
[1693409576059,0.07322313,223.07,222.86,0.82332656]
[1693409576261,0.14644627,223.1,222.86,0.82332656]
[1693409576262,0.07322313,223.08,222.86,0.82332656]
[1693409576562,0.07322313,223.07,222.86,0.82332656]
[1693409576763,0.07322313,223.08,222.86,0.82332656]
[1693409576963,0.07322313,223.07,222.86,0.82332656]
[1693409582563,0.07322313,223.07,222.86,0.89656053]
[1693409582768,0.07322313,223.07,222.87,0.82332656]
[1693409588371,0.07322313,223.08,222.87,0.82332656]
[1693409588771,0.07322313,223.07,222.87,0.82332656]
[1693409588966,0.14644627,223.1,222.87,0.82332656]
[1693409588967,0.07322313,223.08,222.87,0.82332656]
[1693409589773,0.07322313,223.07,222.87,0.82332656]
[1693409593475,0.07322313,223.07,222.85,0.07323397]
[1693409593678,0.07322313,223.07,222.86,0.82332106]
[1693409595375,0.07322313,223.06,222.86,0.82332106]
[1693409595578,0.07322313,223.07,222.86,0.82332106]
[1693409595771,0.07322313,223.06,222.86,0.82332106]
[1693409596276,0.07322313,223.07,222.86,0.89655503]
[1693409596474,0.07322313,223.07,222.87,0.82332106]
[1693409596677,0.07322313,223.04,222.81,0.07323397]
[1693409596978,0.07322313,223.02,222.78,0.07323397]
[1693409597177,0.07322313,223.02,222.79,0.82411545]
[1693409597971,0.07322313,223.04,222.79,0.82411545]
[1693409598279,0.07322313,223.04,222.8,0.82411545]
[1693409598478,0.07322313,223.04,222.78,0.82411545]
[1693409598777,0.07322313,223.03,222.79,0.82411545]
[1693409598976,0.07322313,223.03,222.77,0.82411545]
[1693409599177,0.07322313,223.03,222.8,0.82411545]
[1693409599476,0.07322313,223.03,222.81,0.82411545]
[1693409599778,0.07322313,223.05,222.75,0.07323397]
[1693409599969,0.07322313,223.05,222.76,0.82413087]
[1693409600978,0.07322313,223.06,222.76,0.82413087]
[1693409601175,0.07322313,223.05,222.75,0.82413087]
[1693409602883,0.07322313,223.06,222.75,0.82413087]
[1693409603082,0.07322313,223.06,222.74,0.82413087]